Cogmind - Beta 16.1 @@@ ROGUE MODE // 2026.03.10 @ 18:41:33 Player: KURIIRI Result: Destroyed by Lightning with EMDS Performance ------------- Evolutions (4) 2000 Regions Visited (22) 4400 Robots Destroyed (409) 2045 Value Destroyed (18582) 18582 Prototype IDs (66) 1320 Alien Tech Used (0) 0 Bonus (8607) 8607 TOTAL SCORE: 36954 Bonus ------- High Alert Combat Kills 4253 Follower Combat Kills 2068 Entered Garrisons 600 Network Hubs Disabled 400 Aligned with FarCom 300 Met Data Miner 300 Acquired ECA 300 Built Enhanced Grunts 300 Met R17 at Cetus 500 Friendly Fire -414 Cogmind --------- Core Integrity 0/850 Matter 226/300 Energy 94/100 System Corruption 23% Temperature Cool (0) Movement Core (50) Location -6/Hub_04(d) Parts ------- > --- POWER (1) -------- (None) > --- PROPULSION (6) --- (None) > --- UTILITY (6) ------ Experimental Heat Sink Advanced Targeting Computer Improved Hacking Suite Improved System Shield Improved System Shield > --- WEAPON (2) ------- (None) > --- INVENTORY (5) ---- Quantum Reactor Transmission Jammer Centrium Medium Armor Plating Cooled Plasma Cannon Advanced KE Penetrator Peak State ------------ > --- POWER ------------ Cold Fusion Reactor > --- PROPULSION ------- Centrium Heavy Treads Centrium Heavy Treads Centrium Heavy Treads > --- UTILITY ---------- Experimental Heat Sink High-capacity Storage Unit Advanced Targeting Computer Improved Hacking Suite Improved System Shield Improved System Shield > --- WEAPON ----------- Advanced Variable Charge Gun Advanced KE Penetrator > --- INVENTORY -------- Quantum Reactor Gravmag System Improved Gravmag System Transmission Jammer Centrium Medium Armor Plating Centrium Medium Armor Plating Improved System Restoration Module Cooled Plasma Cannon Compact Ion Cannon Advanced KE Penetrator Linear Accelerator [Rating: 109] Favorites ----------- Power Cold Fusion Reactor Engine Heavy Ion Engine Power Core Nuclear Core Reactor Cold Fusion Reactor Propulsion Gravmag System Treads Light Treads Leg Aluminum Leg Wheel Compact Wheel Hover Unit Gravmag System Utility Hacking Suite Device Improved Cooling System Storage High-capacity Storage Unit Processor Advanced Targeting Computer Hackware Hacking Suite Protection Heavy Armor Plating Weapon Powered Hammer Energy Gun Heavy EM Shotgun Energy Cannon EM Pulse Cannon Ballistic Gun KE Penetrator Ballistic Cannon Improved Light Cannon Launcher Proton Missile Launcher Special Weapon Mining Laser Impact Weapon Powered Hammer Slashing Weapon Ripper Build | -11 -10 -10 -9 -9 -9 -8 -8 -8 -8 -7 -7 -7 -7 -7 -7 -6 -6 -6 -6 -6 -6 -6 ------- Run | Yrd Mat Min Mat Min Exi Min Mat Gar Sto Fac Gar Fac Low Low Dat Pro Fac Gar Ext Cet Arc Hub Slots Evolved 8 | . . . 2 . . . 2 . . 2 . . . . . . 2 . . . . . Power . | . . . . . . . . . . . . . . . . . . . . . . . Propulsion 4 | . . . . . . . 1 . . 1 . . . . . . 2 . . . . . Utility 4 | . . . 2 . . . 1 . . 1 . . . . . . . . . . . . Weapon . | . . . . . . . . . . . . . . . . . . . . . . . Parts Attached 158 | 1 15 . 17 4 1 . 6 7 5 10 8 10 1 10 . . 21 8 18 6 7 3 Power 11 | . 1 . 2 . . . 1 . 1 1 . 1 . 1 . . 1 2 . . . . Engine 4 | . 1 . 2 . . . . . . 1 . . . . . . . . . . . . Core 3 | . . . . . . . 1 . . . . . . 1 . . 1 . . . . . Reactor 4 | . . . . . . . . . 1 . . 1 . . . . . 2 . . . . Propulsion 55 | . 4 . 3 2 . . 2 . 3 4 2 2 . 7 . . 12 3 5 1 3 2 Treads 24 | . 2 . 3 1 . . 2 . 1 2 2 . . . . . 4 3 1 1 . 2 Leg 5 | . 2 . . . . . . . . . . . . 3 . . . . . . . . Wheel 11 | . . . . 1 . . . . 2 . . 2 . . . . 5 . 1 . . . Hover 15 | . . . . . . . . . . 2 . . . 4 . . 3 . 3 . 3 . Flight . | . . . . . . . . . . . . . . . . . . . . . . . Utility 49 | 1 3 . 3 1 1 . 1 5 . 1 2 5 1 1 . . 5 2 9 3 4 1 Device 20 | 1 1 . 1 . . . . 2 . . 2 2 1 . . . 3 2 3 1 1 . Storage 4 | . 1 . 1 . 1 . . . . . . . . 1 . . . . . . . . Processor 6 | . 1 . . . . . 1 . . . . 2 . . . . . . 2 . . . Hackware 10 | . . . 1 . . . . 1 . 1 . . . . . . 1 . 2 . 3 1 Protection 9 | . . . . 1 . . . 2 . . . 1 . . . . 1 . 2 2 . . Artifact . | . . . . . . . . . . . . . . . . . . . . . . . Weapon 43 | . 7 . 9 1 . . 2 2 1 4 4 2 . 1 . . 3 1 4 2 . . Energy Gun 13 | . 5 . 7 . . . . . . . . . . . . . . . . 1 . . Energy Cannon 11 | . . . 1 . . . 2 1 . . 2 1 . 1 . . 3 . . . . . Ballistic Gun 6 | . . . 1 . . . . . 1 . 1 . . . . . . . 2 1 . . Ballistic Cannon 3 | . 1 . . . . . . . . 1 . . . . . . . . 1 . . . Launcher 5 | . 1 . . . . . . 1 . 1 1 1 . . . . . . . . . . Special Weapon 1 | . . . . 1 . . . . . . . . . . . . . . . . . . Impact Weapon 2 | . . . . . . . . . . 2 . . . . . . . . . . . . Slashing Weapon 2 | . . . . . . . . . . . . . . . . . . 1 1 . . . Piercing Weapon . | . . . . . . . . . . . . . . . . . . . . . . . Special Melee Weapon . | . . . . . . . . . . . . . . . . . . . . . . . Unidentified Prototypes 20 | . . . 4 . . . . . 2 4 2 . . . . . 1 . 2 5 . . Corrupted Parts 2 | . . . . . . . . . . . . . . . . . . . . . . 2 System Corruption 4 | . . . . . . . . . . . . . . . . . . . . . . 4 Parts Lost 32 | . 3 . 1 . . . . 1 2 . . 1 . 4 . 1 3 2 6 . . 8 Power 1 | . . . . . . . . . . . . . . . . . . . . . . 1 Propulsion 16 | . 1 . . . . . . . 2 . . . . 4 . . 3 . 2 . . 4 Utility 7 | . 1 . . . . . . 1 . . . 1 . . . . . 1 2 . . 1 Weapon 8 | . 1 . 1 . . . . . . . . . . . . 1 . 1 2 . . 2 Highest Loss Streak 8 | . 2 . 1 . . . . 1 2 . . 1 . 2 . 1 1 1 3 . . 8 To Critical Strikes . | . . . . . . . . . . . . . . . . . . . . . . . Average Backups 15 | 5 6 9 10 11 12 13 15 14 16 16 16 18 17 17 18 17 18 17 17 17 15 13 Power 1 | 1 . . . 1 2 3 3 2 2 2 2 1 1 1 2 1 1 2 1 1 1 1 Propulsion 2 | 3 2 2 2 3 3 3 2 3 1 1 1 2 5 3 1 . 4 5 4 2 2 2 Utility 5 | . . 1 1 3 3 3 5 5 6 6 6 6 5 5 7 6 7 6 6 7 6 5 Weapon 5 | 1 3 5 4 3 3 4 4 4 5 5 6 6 6 6 8 8 5 3 4 6 5 4 Tool/Special . | . . . . . . . . . . . . . . . . . . . . . . . Unused Backups 59 | . 5 . 13 1 2 . . 1 . 9 2 9 . . . . 7 . 1 1 4 4 Power 10 | . 2 . 1 . . . . 1 . 1 . 1 . . . . 1 . 1 1 . 1 Propulsion 5 | . 1 . 2 . . . . . . . 1 . . . . . 1 . . . . . Utility 29 | . 2 . 5 . . . . . . 5 . 8 . . . . 4 . . . 3 2 Weapon 13 | . . . 5 1 1 . . . . 3 . . . . . . 1 . . . 1 1 Tool/Special 2 | . . . . . 1 . . . . . 1 . . . . . . . . . . . Average Slot Usage (%) 87 | . 94 100 96 91 88 88 88 88 87 89 76 75 91 91 84 85 95 77 71 85 93 82 Engine 2 | . 14 14 10 11 11 11 1 . . . . . . . . . . . . . . . Core 2 | . . . . . . . 7 9 6 . . . . 1 7 7 6 3 . . . . Reactor 2 | . . . . . . . . . 3 7 7 7 7 5 . . . 2 6 6 6 4 Treads 11 | . 14 28 22 14 11 11 18 18 12 12 14 14 7 3 . . 8 14 7 6 . 2 Wheel 6 | . . . . 7 11 11 9 9 14 14 7 1 15 6 . . 11 5 4 . . . Hover 6 | . . . . . . . . . . . . . . 9 30 30 15 . 3 26 38 28 Device 5 | . 2 . 9 3 . . . 3 9 7 1 2 14 13 15 13 6 6 3 . 4 6 Storage 8 | . 14 14 11 11 11 11 9 9 9 7 7 7 7 8 7 6 6 6 6 6 6 5 Processor 5 | . 7 14 11 3 . . 7 8 . . . 3 7 7 7 7 6 6 12 13 7 6 Hackware 11 | . . . 9 11 11 11 9 6 9 14 15 15 15 15 15 15 17 10 8 . 16 19 Protection 4 | . . . . 7 11 11 9 8 9 7 5 6 . . . . 1 5 3 12 3 . Energy Gun 4 | . 19 . 17 22 22 22 7 . . . . . . . . . . . . . 4 5 Energy Cannon 4 | . . . 1 . . . 10 12 16 7 2 5 7 7 . 1 5 3 3 . . . Launcher 1 | . 1 14 . . . . . 5 . . 4 1 . 2 . . . 1 . . . . Impact Weapon 2 | . . . . . . . . . . 5 6 6 7 1 . . 5 6 1 . . . Peak Build Rating 109 | 9 9 9 22 27 27 28 34 38 39 52 75 74 63 64 53 53 66 87 98 99 101 109 Average Rating 47 | 7 7 9 17 24 26 27 32 32 34 46 54 67 62 58 49 49 54 73 69 81 79 75 On Entrance 44 | 6 9 9 9 22 26 27 28 32 31 39 49 64 62 63 58 49 51 64 87 65 99 75 Avg Prop Armor Cover (%) 10 | . . . . 5 5 5 9 9 5 8 3 17 22 11 . . 16 12 17 5 9 . Naked Turns . | . . . . . . . . . . . . . . . . . . . . . . . Heaviest Build 114 | 13 22 22 37 51 71 71 74 78 80 81 81 77 68 75 57 70 71 86 93 114 84 64 Greatest Support 220 | 20 40 40 40 43 16 16 16 16 28 24 147 135 28 75 36 36 110 220 220 42 80 62 Greatest Overweight (x) 6 | . 1 . . 3 4 4 4 4 4 3 3 2 2 6 1 1 4 2 2 2 1 3 Average Overweight (x) 1 | . . . . 2 3 4 3 4 3 3 . . 2 1 1 . 1 1 1 1 . . Largest Inventory Capacity 20 | 8 10 10 15 15 20 20 20 20 20 20 20 20 20 20 20 20 20 20 20 20 20 20 Average Capacity 18 | 8 8 10 12 15 15 20 20 20 20 20 20 20 20 20 20 18 20 20 20 20 20 19 Most Carried 20 | 6 9 10 15 15 15 16 19 18 20 20 20 20 20 20 20 20 20 20 20 20 20 19 Average Carried 16 | 5 6 9 11 13 14 15 17 16 17 17 18 19 19 18 19 18 19 18 18 19 18 16 Final Capacity 20 | 8 10 10 15 15 20 20 20 20 20 20 20 20 20 20 20 20 20 20 20 20 20 5 Final Carried 20 | 5 9 10 15 14 15 16 18 17 20 17 17 20 19 18 20 17 20 19 17 20 18 5 Class Distribution -------------------- 38% | Mutant 32% | Hacker-Mutant 20% | Scavenger-Mutant 4% | Scavenger-Scout 3% | Commander-Mutant Dominant Class ---------------- Mutant | -10/Materials Mutant | -10/Mines Mutant | -9/Materials Mutant | -9/Mines Mutant | -9/Exiles Mutant | -8/Mines Mutant | -8/Materials Mutant | -8/Garrison Mutant | -8/Storage Hacker-Mutant | -7/Factory Hacker-Mutant | -7/Garrison Hacker-Mutant | -7/Factory Hacker-Mutant | -7/Lower Caves Hacker-Mutant | -7/Lower Caves Scavenger-Mutant | -7/Data Miner Scavenger-Mutant | -6/Proximity Caves Scavenger-Mutant | -6/Factory Hacker-Mutant | -6/Garrison Scavenger-Mutant | -6/Extension Scavenger-Mutant | -6/Cetus Scavenger-Scout | -6/Archives Scavenger-Scout | -6/Hub_04(d) Resources | -11 -10 -10 -9 -9 -9 -8 -8 -8 -8 -7 -7 -7 -7 -7 -7 -6 -6 -6 -6 -6 -6 -6 ----------- Run | Yrd Mat Min Mat Min Exi Min Mat Gar Sto Fac Gar Fac Low Low Dat Pro Fac Gar Ext Cet Arc Hub Matter Collected 5074 | 210 239 48 364 50 . 10 70 576 181 226 506 364 45 237 . 159 374 410 577 214 188 26 Remotely . | . . . . . . . . . . . . . . . . . . . . . . . Salvage Created 19737 | 115 492 18 1603 170 . 377 518 1212 1520 1200 2433 1984 37 692 . 203 2252 1993 2451 167 273 27 Parts 890 | 3 38 2 94 18 . 13 26 71 90 51 82 81 . 30 . 8 79 72 103 8 19 2 Haulers Intercepted 12 | . 2 . 6 . . . . . 2 . . . . . . . 2 . . . . . Recyclers Shooed 16 | 1 1 . 1 . . . 1 . . . . 3 . . . . 3 . 6 . . . Parts Field Recycled . | . . . . . . . . . . . . . . . . . . . . . . . Retrieved Matter . | . . . . . . . . . . . . . . . . . . . . . . . Parts Self-Destructed 16 | . . . . . . . . . . . . . . 8 . 8 . . . . . . Prevented 11 | . . . . . . . . . . . . . . 11 . . . . . . . . Parts Restored . | . . . . . . . . . . . . . . . . . . . . . . . Kills | -11 -10 -10 -9 -9 -9 -8 -8 -8 -8 -7 -7 -7 -7 -7 -7 -6 -6 -6 -6 -6 -6 -6 ------- Run | Yrd Mat Min Mat Min Exi Min Mat Gar Sto Fac Gar Fac Low Low Dat Pro Fac Gar Ext Cet Arc Hub Combat Hostiles Destroyed 302 | . 9 2 23 4 . 10 8 41 21 17 36 29 . 13 . 7 23 25 29 3 1 1 Melee 10 | . . . . . . . . . . . 2 2 . . . . 3 . 3 . . . Guns 43 | . 4 . 13 4 . 5 4 . . . 1 2 . 3 . 1 . . 4 1 . 1 Cannons 125 | . . 2 7 . . . 1 25 19 14 7 8 . 6 . 3 10 8 12 2 1 . AOE 89 | . 5 . 2 . . 4 3 15 . 3 17 9 . 3 . 3 6 12 7 . . . Classes Destroyed 21 | 2 6 . 3 . . 1 . 3 1 . 1 . 1 . . . . . 3 . . . Worker 17 | . 3 . 1 2 . . . . 3 . . 1 . . . . 4 . 3 . . . Builder 15 | . . . 1 . . . . . . 2 . 4 . . . . 4 . 4 . . . Tunneler 9 | 1 2 . . 2 . . . . . 1 . 1 . . . . . . 2 . . . Hauler 12 | . 2 . 6 . . . . . 2 . . . . . . . 2 . . . . . Recycler 11 | 1 . . 2 . . . . . . 2 . 2 . . . . 3 . 1 . . . Mechanic 3 | . . . . . . . . . 1 . . 1 . . . . 1 . . . . . Operator 15 | . 1 . 1 . . . 1 . 2 . . . . . . . 3 . 1 . 6 . Drone 1 | . . . . . . . . . . . 1 . . . . . . . . . . . Watcher 22 | . 2 . 4 . . . 3 . 2 5 . 1 . . . . 3 . 2 . . . Swarmer 66 | . 3 2 2 2 . 4 . 16 . 4 7 3 . 5 . 7 . 10 . . . 1 Saboteur 1 | . . . . . . . . . . . . . . . . . . . 1 . . . Grunt 124 | . 6 . 12 2 . 5 4 5 10 3 21 16 . 1 . . 14 9 16 . . . Brawler 11 | . . . . . . 1 . 1 1 . 3 2 . . . . . 2 1 . . . Duelist 9 | . . . 1 . . . . 1 . 1 . 2 . 2 . . 1 . 1 . . . Sentry 53 | . . . 8 . . . 4 9 9 5 1 3 . 1 . . 2 3 7 . 1 . Demolisher 1 | . . . . . . . . . . . . . . . . . . . 1 . . . Specialist 5 | . . . . . . . . 3 . . 1 . . . . . . 1 . . . . Hunter 9 | . . . . . . . . 3 1 1 2 1 . . . . 1 . . . . . Programmer 13 | . . . . . . . . 3 . 3 . 2 . . . . 5 . . . . . Behemoth 2 | . . . . . . . . . . . . . . . . . . . 2 . . . Cetus Guard 3 | . . . . . . . . . . . . . . . . . . . . 3 . . Decomposer 1 | . . . . . . . . . . . . . . . . 1 . . . . . . Samaritan 1 | . . . . . . . . . . . . . 1 . . . . . . . . . Thug 6 | . . . 1 . . . . . . . . . . 4 . . . . 1 . . . Butcher 2 | . . . . . . . . . . . . . . . . . . . 2 . . . Best Kill Streak 16 | 1 8 2 7 3 . 4 4 8 8 4 8 13 . 4 . 4 6 6 16 2 2 1 Combat Bots Only 10 | . 6 2 4 3 . 4 4 8 4 3 8 5 . 4 . 4 5 6 10 2 1 1 Max Kills in Single Turn 5 | 1 2 1 2 2 . 3 1 3 2 2 2 3 1 2 . 2 5 3 2 1 1 1 Gunslinging . | . . . . . . . . . . . . . . . . . . . . . . . Exploded 3 | . 2 . 1 . . 3 1 3 . 2 2 3 . 2 . 2 2 3 1 . . . Melee 1 | . . . . . . . . . . . 1 1 . . . . 1 . 1 . . . Uniques/NPCs Destroyed . | . . . . . . . . . . . . . . . . . . . . . . . Combat | -11 -10 -10 -9 -9 -9 -8 -8 -8 -8 -7 -7 -7 -7 -7 -7 -6 -6 -6 -6 -6 -6 -6 -------- Run | Yrd Mat Min Mat Min Exi Min Mat Gar Sto Fac Gar Fac Low Low Dat Pro Fac Gar Ext Cet Arc Hub Hostile Shots Fired 1249 | . 35 9 75 3 . 11 15 69 46 71 89 168 . 106 . 28 66 141 202 16 9 90 Missed 422 | . 9 2 19 . . 5 5 22 19 36 32 57 . 36 . 6 24 45 69 5 4 27 Hits 827 | . 26 7 56 3 . 6 10 47 27 35 57 111 . 70 . 22 42 96 133 11 5 63 Melee 23 | . . . 2 . . . . . . 1 . 6 . 11 . . . . 3 . . . Projectile 804 | . 26 7 54 3 . 6 10 47 27 34 57 105 . 59 . 22 42 96 130 11 5 63 AOE 7 | . . . . . . . . 1 . . . . . . . . . . 6 . . . Critical Strikes 39 | . . . 2 . . . 2 1 1 . 2 10 . 5 . . . 2 4 3 . 7 Damage Taken 13534 | 24 375 59 844 48 . 81 158 654 406 394 849 1679 . 1216 . 340 663 1048 2681 164 119 1732 Core 1530 | . 72 10 124 . . . 16 32 14 52 73 106 . 124 . 38 29 38 225 33 76 468 Absorbed by Shields 112 | . . . . . . . . 20 . . . . . . . . . . 27 65 . . Reduced by Siege Mode 503 | . . . . . . . . . . . . 31 . 133 . . . 79 213 . . 47 Ignored by Resistances 121 | . . . . . . . . . . . . . . . . . . . . 121 . . Regen/Repaired (Parts) 1035 | . . . 69 . . . . . 241 363 . 281 . . . . 81 . . . . . Core Remaining (%) 73 | 100 . 67 . . . 69 . . 88 . . . . . . 43 . . . . . . Volleys Fired 1064 | 8 44 8 85 12 . 15 16 156 59 68 115 89 . 42 . 17 65 84 141 12 8 20 Largest 2 | 2 2 1 2 2 . 2 2 2 2 2 2 2 . 2 . 2 2 1 1 2 2 2 Hottest 240 | 90 100 33 100 100 . 100 126 126 126 126 120 113 . 149 . 113 155 75 105 89 89 240 Shots Fired 1344 | 16 75 8 155 24 . 30 32 172 88 70 117 105 2 68 . 23 70 84 142 23 16 24 Gun 382 | 16 70 . 102 24 . 30 12 . . . 9 16 . 13 . 7 . . 47 4 8 24 Cannon 772 | . 1 8 53 . . . 20 139 88 64 54 62 2 53 . 12 57 52 80 19 8 . Launcher 190 | . 4 . . . . . . 33 . 6 54 27 . 2 . 4 13 32 15 . . . Special . | . . . . . . . . . . . . . . . . . . . . . . . Kinetic 179 | . 1 8 36 . . . . . . . 9 16 . 13 . 7 . . 51 16 16 6 Thermal 484 | 8 46 . 17 . . . . 46 . 49 38 57 2 39 . 12 42 27 76 7 . 18 Explosive 42 | . 4 . . . . . . 33 . 3 2 . . . . . . . . . . . Electromagnetic 639 | 8 24 . 102 24 . 30 32 93 88 18 68 32 . 16 . 4 28 57 15 . . . Robot Hit Streak 32 | 5 12 13 17 9 . 13 32 19 32 15 21 18 . 30 . 31 9 30 27 13 7 12 Robot Miss Streak 5 | 1 5 3 4 4 . 4 1 2 1 2 2 3 . 1 . 2 3 1 2 1 1 2 Penetration Max 2 | . . . . . . . . . . . . 1 . . . . . . 2 . . 1 Secondary Targets 1 | . . . . . . 1 . . . . . . . . . . . . . . . . Max Gunslinging Chain 1 | . . . . . . 1 . . . . . . . . . . . . . . . . Shots Hit Robots 947 | 13 47 4 111 11 . 23 25 42 72 33 74 86 1 57 . 11 60 80 127 19 33 18 Core Hits 632 | 3 28 2 66 9 . 16 17 54 35 28 62 57 . 22 . 10 48 59 88 10 13 5 Critical Kills 6 | . . . . . . . . . . . . 2 . 1 . . 3 . . . . . Critical Parts Destroyed 11 | . . . . . . . . . . 1 2 2 . . . . 4 . 1 1 . . Critical Strikes 37 | . 2 . 3 . . . . . . 1 2 5 . 1 . . 7 6 3 1 6 . Burn 2 | . 2 . . . . . . . . . . . . . . . . . . . . . Meltdown 4 | . . . . . . . . . . . . 2 . 1 . . 1 . . . . . Destroy 3 | . . . . . . . . . . . . 1 . . . . . . 1 1 . . Blast 6 | . . . 3 . . . . . . . . . . . . . . . 1 . 2 . Smash 11 | . . . . . . . . . . 1 2 2 . . . . 6 . . . . . Sever 11 | . . . . . . . . . . . . . . . . . . 6 1 . 4 . Melee Attacks 214 | . . . . . . . . . . 10 48 21 3 . . . 39 57 16 . 20 . Impact 156 | . . . . . . . . . . 10 48 21 3 . . . 39 30 5 . . . Slashing 58 | . . . . . . . . . . . . . . . . . . 27 11 . 20 . Piercing . | . . . . . . . . . . . . . . . . . . . . . . . Sneak Attacks 32 | . . . . . . . . . . 4 . 2 1 . . . 6 . 6 . 13 . Combat Hostiles . | . . . . . . . . . . . . . . . . . . . . . . . Follow-up Attacks 4 | . . . . . . . . . . . . . . . . . . 4 . . . . Damage Inflicted 41603 | 198 1021 102 2563 286 . 821 1389 3397 2041 3055 3919 4126 82 1644 . 452 3874 4269 5874 706 1257 527 Guns 6577 | 171 649 . 1354 205 . 451 291 . . . 121 402 . 362 . 93 . . 1695 74 182 527 Cannons 16570 | . . 102 739 . . . 485 1894 2041 2117 1421 1182 . 1169 . 179 1226 1226 1858 632 299 . Explosions 12823 | 27 372 . 468 81 . 370 613 1503 . 578 1815 1944 . 113 . 180 1645 1545 1569 . . . Melee 5617 | . . . . . . . . . . 352 562 592 82 . . . 1003 1498 752 . 776 . Ramming 16 | . . . 2 . . . . . . 8 . 6 . . . . . . . . . . Kinetic 4571 | . . 102 575 . . . . . . . 121 402 . 362 . 93 . . 1826 512 481 97 Thermal 13426 | 100 431 . 632 81 . 370 613 1119 . 1839 1287 1351 . 873 . 179 1098 1003 1826 194 . 430 Explosive 2740 | . 326 . . . . . . 1476 . 367 . . . . . . 571 . . . . . Electromagnetic 15233 | 98 264 . 1354 205 . 451 776 802 2041 489 1949 1775 . 409 . 180 1202 1768 1470 . . . Impact 3347 | . . . . . . . . . . 352 562 592 82 . . . 1003 434 322 . . . Slashing 2270 | . . . . . . . . . . . . . . . . . . 1064 430 . 776 . Piercing . | . . . . . . . . . . . . . . . . . . . . . . . Highest Corruption 22 | . 1 1 . . . . . 2 2 . 1 2 2 2 2 3 5 1 2 . . 22 Average Corruption 1 | . 1 1 . . . . . 1 2 . 1 1 2 2 2 2 2 1 1 . . 9 Corruption Purged 7 | . . . . . . . . . . . . . . . . . 5 . 2 . . . Corruption Blocked . | . . . . . . . . . . . . . . . . . . . . . . . Effects 121 | . . 3 . . . . . 19 11 . 1 6 9 8 . 17 21 12 12 . . 2 Message Errors 25 | . . . . . . . . 4 2 . . . 4 2 . 4 3 3 3 . . . Matter Fused 25 | . . 1 . . . . . 7 5 . 1 1 1 . . 5 2 1 1 . . . Heat Flow Errors 20 | . . 1 . . . . . 1 2 . . 3 . 1 . 3 6 2 1 . . . Energy Discharges 14 | . . . . . . . . 2 1 . . . 1 1 . 2 4 1 2 . . . Parts Rejected 1 | . . . . . . . . . 1 . . . . . . . . . . . . . Parts Fused 3 | . . . . . . . . . . . . . . . . . 1 . 1 . . 1 Data Loss (minor) 20 | . . . . . . . . 3 . . . 2 1 4 . 2 3 4 . . . 1 Data Loss (major) 4 | . . 1 . . . . . 1 . . . . . . . . . 1 1 . . . Misfires 6 | . . . . . . . . 1 . . . . 2 . . . 1 . 2 . . . Alerts 2 | . . . . . . . . . . . . . . . . 1 1 . . . . . Weapon Failures 1 | . . . . . . . . . . . . . . . . . . . 1 . . . Overload Shots 3 | . . . . . . . . . . . . . . . . . . . 1 . . 2 Overflow Damage 2301 | 21 7 1 2 . . 18 102 63 7 438 147 346 47 57 . 2 664 218 142 . 19 . Projectiles 387 | . . 1 2 . . . 32 62 7 157 . 33 . 57 . 2 7 21 6 . . . Explosions 382 | 21 7 . . . . 18 70 1 . 14 19 52 . . . . 151 12 17 . . . Melee 1532 | . . . . . . . . . . 267 128 261 47 . . . 506 185 119 . 19 . Knockbacks 17 | . . . 4 . . . . . . 1 2 3 . . . . 3 1 3 . . . Impact 11 | . . . . . . . . . . 1 1 3 . . . . 3 1 2 . . . Kinetic 5 | . . . 4 . . . . . . . . . . . . . . . 1 . . . Secondary 1 | . . . . . . . . . . . 1 . . . . . . . . . . . Self-Inflicted Damage 489 | 24 50 . 86 . . . . 71 . 4 99 48 . . . 8 . 33 66 . . . Shots 28 | 1 1 . 3 . . . . 3 . . 6 5 . . . 2 . 2 5 . . . Rammed 3 | . . . 1 . . . . . . 1 . 1 . . . . . . . . . . Targets Rammed 3 | . . . 1 . . . . . . 1 . 1 . . . . . . . . . . Kicked . | . . . . . . . . . . . . . . . . . . . . . . . Crushed . | . . . . . . . . . . . . . . . . . . . . . . . Highest Temperature 390 | 150 342 235 384 270 . 346 288 390 220 208 264 390 . 153 . 245 206 126 229 180 9 276 Average Temperature 85 | 68 112 122 54 84 . 126 97 93 29 62 92 125 . 22 . 132 89 45 26 68 9 101 Received Heat Transfer 3522 | . 159 . 333 27 . 45 90 57 180 63 291 609 . 291 . . 135 297 750 18 9 168 Effects 7 | . . . . . . . . 3 . . 1 2 . . . . . . . . . 1 Shutdowns 1 | . . . . . . . . . . . . 1 . . . . . . . . . . Energy Bleed 2 | . . . . . . . . . . . . 1 . . . . . . . . . 1 Interference 1 | . . . . . . . . . . . 1 . . . . . . . . . . . Matter Decay 2 | . . . . . . . . 2 . . . . . . . . . . . . . . Damage (minor) 1 | . . . . . . . . 1 . . . . . . . . . . . . . . Siege Activations 13 | . . . . . . . . . . . . 2 . 2 . . . 5 3 . . 1 Total Turns 308 | . . . . . . . . . . . . 39 . 68 . . . 115 75 . . 11 Longest Duration 45 | . . . . . . . . . . . . 22 . 38 . . . 45 28 . . 11 Martial Activations . | . . . . . . . . . . . . . . . . . . . . . . . Shielding Activations . | . . . . . . . . . . . . . . . . . . . . . . . Robots Disrupted . | . . . . . . . . . . . . . . . . . . . . . . . Combat Hostiles . | . . . . . . . . . . . . . . . . . . . . . . . Robots Corrupted 42 | . . . 1 . . 1 1 1 2 1 11 9 . . . . 7 5 3 . . . Combat Hostiles 31 | . . . 1 . . 1 . 1 2 . 9 7 . . . . 3 4 3 . . . Parts Fried 119 | . 2 . 9 . . 2 7 4 14 8 17 17 2 . . 2 20 7 8 . . . Impact Corruptions 41 | . . . . . . . . . . 9 6 8 1 . . . 15 2 . . . . Robots Melted 5 | . . . . . . . . . . . . 2 . 1 . . 1 1 . . . . Combat Hostiles 4 | . . . . . . . . . . . . 1 . 1 . . 1 1 . . . . Parts Melted 38 | . 3 . 1 . . . . 7 . 6 . 4 . 1 . . 4 1 9 . . 2 Heat Transferred 22602 | 272 1345 . 1033 100 . 500 500 2249 . 3890 2400 2202 . 1700 . 350 1650 1350 2318 300 . 443 Parts Sabotaged . | . . . . . . . . . . . . . . . . . . . . . . . Parts Stolen . | . . . . . . . . . . . . . . . . . . . . . . . Parts Stripped . | . . . . . . . . . . . . . . . . . . . . . . . Power Chain Reactions 38 | 1 1 . 9 1 . 2 5 1 . 1 5 4 . . . . 2 3 3 . . . Alert | -11 -10 -10 -9 -9 -9 -8 -8 -8 -8 -7 -7 -7 -7 -7 -7 -6 -6 -6 -6 -6 -6 -6 ------- Run | Yrd Mat Min Mat Min Exi Min Mat Gar Sto Fac Gar Fac Low Low Dat Pro Fac Gar Ext Cet Arc Hub Maximum Alert Level 5 | . 1 . 1 . . . . 5 4 1 5 4 . . . . 2 5 4 2 1 1 Low Security (%) 37 | 100 99 100 19 100 . 100 100 11 . 19 3 . . . . . 67 . . . 66 88 Level 1 20 | . . . 80 . . . . 8 . 80 18 . . . . . 14 10 . . 33 11 Level 2 8 | . . . . . . . . 21 10 . 13 . . . . . 17 17 . 100 . . Level 3 14 | . . . . . . . . 18 64 . 18 42 . . . . . 17 65 . . . Level 4 14 | . . . . . . . . 29 24 . 25 57 . . . . . 29 34 . . . Level 5 4 | . . . . . . . . 10 . . 20 . . . . . . 24 . . . . High Security . | . . . . . . . . . . . . . . . . . . . . . . . Max Security . | . . . . . . . . . . . . . . . . . . . . . . . Peak Influence 1948 | 5 206 68 312 188 . 155 167 1745 1211 317 1719 1419 . . . . 483 1948 1373 642 368 223 Initial 1022 | . . 12 . 114 . . . . 850 302 102 902 . . . . 77 322 1022 558 226 . Average 523 | 1 68 21 233 95 . 55 41 881 978 244 986 1145 . . . . 158 1164 1019 565 132 128 Influence Increases 13816 | 10 378 78 1035 299 . 328 359 1815 667 627 1617 1021 . 195 . 175 974 1686 1690 285 222 355 Destroy 0b10 Robot/C 6920 | . 180 60 540 120 . 200 160 840 420 340 700 580 . 180 . 140 460 740 920 160 80 100 Destroy 0b10 Robot/NC 635 | 10 50 . 80 25 . . 20 5 50 50 30 50 . 5 . . 100 30 90 10 30 . Destroy Leader 1122 | . 58 10 172 30 . 30 56 30 138 120 30 112 . 10 . 20 140 40 106 . . 20 Allied During Kill 1042 | . . 8 38 24 . 1 . 9 3 . . . . . . . . 282 426 98 79 74 Trap Triggered on 0b10 10 | . . . 10 . . . . . . . . . . . . . . . . . . . Successful Hack 292 | . 12 . 48 . . . 34 19 9 44 26 18 . . . . 43 14 7 . . 18 Select Force Hacks 50 | . . . . . . . . . . . . . . . . . . . . . . 50 Disable Machine 945 | . 30 . 75 75 . 45 30 75 15 30 150 165 . . . . 120 45 60 . 30 . Anti-Garrison Action 1350 | . . . . . . . . 550 . . 400 . . . . . . 400 . . . . Destroy Structure 910 | . 33 . 27 25 . 52 59 227 2 13 206 81 . . . . 36 90 36 17 3 3 Partial Spotted 15 | . . . . . . . . . . . . . . . . . . . 15 . . . Lose Combat Pursuer 525 | . 15 . 45 . . . . 60 30 30 75 15 . . . 15 75 45 30 . . 90 Influence Decreases 13681 | 10 345 111 740 591 3 328 359 70 1747 1145 45 1349 762 502 322 52 636 199 2640 718 787 220 Entered New Map 5173 | . . 21 . 181 3 . . . 895 363 45 817 516 120 322 . 46 139 926 440 339 . Time Decay 5938 | 10 317 90 540 410 . 289 262 . 362 622 . 522 246 342 . 42 574 . 574 238 428 70 Lost Part 304 | . 28 . 10 . . . . 10 20 . . 10 . 40 . 10 16 20 60 . . 80 Lost Ally 819 | . . . 40 . . 39 . 60 20 10 . . . . . . . 40 480 40 20 70 Purge Threat 1447 | . . . 150 . . . 97 . 450 150 . . . . . . . . 600 . . . Squads Dispatched 48 | . 2 . 1 1 . 1 . . 5 6 . 10 . . . . 11 . 5 . . 6 Investigation 7 | . . . . 1 . . . . 2 . . . . . . . 1 . 1 . . 2 Extermination 11 | . . . . . . . . . . 3 . 3 . . . . 5 . . . . . Reinforcement 19 | . 2 . 1 . . 1 . . 2 3 . 4 . . . . 5 . 1 . . . Assault 11 | . . . . . . . . . 1 . . 3 . . . . . . 3 . . 4 Garrison . | . . . . . . . . . . . . . . . . . . . . . . . Intercept . | . . . . . . . . . . . . . . . . . . . . . . . Searches Triggered . | . . . . . . . . . . . . . . . . . . . . . . . Construction Impeded 5 | . . . . . . 1 . . . . . 2 . . . . 1 . 1 . . . Haulers Reinforced 3 | . . . . . . . . . . . . 2 . . . . 1 . . . . . Active Scanning Responses . | . . . . . . . . . . . . . . . . . . . . . . . Cargo Convoy Interrupts . | . . . . . . . . . . . . . . . . . . . . . . . Stealth | -11 -10 -10 -9 -9 -9 -8 -8 -8 -8 -7 -7 -7 -7 -7 -7 -6 -6 -6 -6 -6 -6 -6 --------- Run | Yrd Mat Min Mat Min Exi Min Mat Gar Sto Fac Gar Fac Low Low Dat Pro Fac Gar Ext Cet Arc Hub Distress Signals 19 | . 1 . 2 . . . 2 . 2 1 . 1 . . . . 3 . 3 2 . 2 Communications Jammed . | . . . . . . . . . . . . . . . . . . . . . . . Distress Signals . | . . . . . . . . . . . . . . . . . . . . . . . Times Spotted 448 | . 18 2 37 5 . 10 13 34 27 22 38 43 . 12 . 7 36 34 55 9 13 33 Peak Tracking Total 19 | . 4 3 6 3 . 4 3 7 4 5 4 5 . 5 . 4 6 4 10 5 2 19 Tactical Retreats 22 | . 1 . 2 . . . . 3 1 2 4 1 . . . 1 2 1 1 . . 3 Traps | -11 -10 -10 -9 -9 -9 -8 -8 -8 -8 -7 -7 -7 -7 -7 -7 -6 -6 -6 -6 -6 -6 -6 ------- Run | Yrd Mat Min Mat Min Exi Min Mat Gar Sto Fac Gar Fac Low Low Dat Pro Fac Gar Ext Cet Arc Hub Traps Triggered 32 | . 2 . . . . . 1 10 1 . 10 . . . . . . 4 4 . . . Indirectly 12 | . . . . . . . . . . . 10 . . . . . . 2 . . . . Trap Hack Attempts . | . . . . . . . . . . . . . . . . . . . . . . . Triggered . | . . . . . . . . . . . . . . . . . . . . . . . Disarmed . | . . . . . . . . . . . . . . . . . . . . . . . Reprogrammed . | . . . . . . . . . . . . . . . . . . . . . . . Reused 1 | . . . 1 . . . . . . . . . . . . . . . . . . . Traps Extracted . | . . . . . . . . . . . . . . . . . . . . . . . Installed 1 | . . . 1 . . . . . . . . . . . . . . . . . . . Triggered 1 | . . . 1 . . . . . . . . . . . . . . . . . . . Most Traps Carried 1 | . . 1 1 . . . . . . . . . . . . . . . . . . . Machines | -11 -10 -10 -9 -9 -9 -8 -8 -8 -8 -7 -7 -7 -7 -7 -7 -6 -6 -6 -6 -6 -6 -6 ---------- Run | Yrd Mat Min Mat Min Exi Min Mat Gar Sto Fac Gar Fac Low Low Dat Pro Fac Gar Ext Cet Arc Hub Machines Disabled 88 | . 2 . 6 5 . 3 2 11 1 2 18 11 . . . . 8 13 4 . 2 . Max in Single Turn 5 | . 1 . 1 3 . 1 2 1 1 1 2 5 . . . . 3 3 1 . 1 . Garrison Access 7 | . . . . . . . . . . 2 . . . . . . 3 . . . . 2 Garrison Relay 15 | . . . . . . . . 6 . . 4 . . . . . . 5 . . . . Phase Generator 2 | . . . . . . . . . . . 1 . . . . . . 1 . . . . Network Hub 2 | . . . . . . . . . . . . . . . . . . . . . . 2 Machines Repaired . | . . . . . . . . . . . . . . . . . . . . . . . Machines Dismantled . | . . . . . . . . . . . . . . . . . . . . . . . Machines Sabotaged 1 | . . . . . . . . . . . . . . . . . . . . . . 1 Overloaded Fab Kills . | . . . . . . . . . . . . . . . . . . . . . . . Hacking | -11 -10 -10 -9 -9 -9 -8 -8 -8 -8 -7 -7 -7 -7 -7 -7 -6 -6 -6 -6 -6 -6 -6 --------- Run | Yrd Mat Min Mat Min Exi Min Mat Gar Sto Fac Gar Fac Low Low Dat Pro Fac Gar Ext Cet Arc Hub Machines Accessed 89 | . 5 . 9 1 2 . 8 5 7 13 2 3 . . 4 . 16 2 9 . . 3 Terminals 59 | . 5 . 6 1 . . 6 5 6 7 2 . . . . . 7 2 9 . . 3 Fabricators 2 | . . . . . . . . . . . . . . . . . 2 . . . . . Repair Stations 6 | . . . 1 . . . . . 1 2 . 1 . . . . 1 . . . . . Recycling Units 1 | . . . 1 . . . . . . . . . . . . . . . . . . . Scanalyzers 6 | . . . 1 . . . 1 . . 1 . 1 . . . . 2 . . . . . Garrison Access 9 | . . . . . . . 1 . . 3 . 1 . . . . 4 . . . . . Total Hacks 283 | . 16 . 31 2 5 . 35 6 18 40 4 6 . . 27 . 47 8 30 . . 8 Successful 176 | . 9 . 23 1 5 . 26 2 9 28 3 3 . . 27 . 25 3 8 . . 4 Failed 104 | . 7 . 7 1 . . 8 4 9 11 1 3 . . . . 22 5 22 . . 4 Catastrophic 18 | . 1 . 3 . . . 1 3 2 1 . . . . . . 2 . 5 . . . Database Lockouts 3 | . . . 1 . . . 1 . . 1 . . . . . . . . . . . . Manual 142 | . 16 . 19 4 1 . 19 . 6 17 1 . . . . . 25 4 22 1 . 7 Terminals 190 | . 16 . 20 2 . . 26 6 15 26 4 . . . . . 29 8 30 . . 8 Fabricators 5 | . . . . . . . . . . . . . . . . . 5 . . . . . Repair Stations 14 | . . . 2 . . . . . 3 4 . 2 . . . . 3 . . . . . Recycling Units 2 | . . . 2 . . . . . . . . . . . . . . . . . . . Scanalyzers 28 | . . . 7 . . . 8 . . 6 . 2 . . . . 5 . . . . . Garrison Access 12 | . . . . . . . 1 . . 4 . 2 . . . . 5 . . . . . Terminal Hacks 89 | . 3 . 7 1 5 . 9 2 7 8 3 . . . 27 . 5 3 8 . . 1 Record 15 | . . . . . 4 . . . . . . . . . 11 . . . . . . . Part Schematic 8 | . . . . . . . . . . . . . . . 8 . . . . . . . Robot Schematic 5 | . . . . . . . . . . . . . . . 5 . . . . . . . Robot Analysis 8 | . 2 . 1 1 . . 2 . . . . . . . . . . . 2 . . . Prototype ID Bank 10 | . 1 . . . . . 2 . . 3 . . . . 3 . . . . . . 1 Open Door 3 | . . . . . . . . 1 2 . . . . . . . . . . . . . Branch Access Points 1 | . . . . . . . . . . 1 . . . . . . . . . . . . Emergency Access Points 2 | . . . . . . . . . . . 1 . . . . . . 1 . . . . Terminal Index 4 | . . . 1 . . . 1 . . . . . . . . . 2 . . . . . Scanalyzer Index 1 | . . . . . . . 1 . . . . . . . . . . . . . . . Garrison Index 3 | . . . . . . . 1 . . 1 . . . . . . 1 . . . . . Alert Level 7 | . . . 1 . . . . . 1 2 . . . . . . 1 . 2 . . . Unreport Threat 11 | . . . 1 . . . 1 . 3 1 . . . . . . 1 . 4 . . . Locate Traps 4 | . . . 2 . . . 1 . 1 . . . . . . . . . . . . . Zone Layout 1 | . . . 1 . . . . . . . . . . . . . . . . . . . Garrison Registry 3 | . . . . . . . . 1 . . 1 . . . . . . 1 . . . . Patrol Navigation 1 | . . . . . . . . . . . 1 . . . . . . . . . . . Security Stations 1 | . . . . . . . . . . . . . . . . . . 1 . . . . Proto ID Catalog 1 | . . . . . 1 . . . . . . . . . . . . . . . . . Fabricator Hacks 2 | . . . . . . . . . . . . . . . . . 2 . . . . . Load Schematic 1 | . . . . . . . . . . . . . . . . . 1 . . . . . Build 1 | . . . . . . . . . . . . . . . . . 1 . . . . . Repair Station Hacks 12 | . . . 2 . . . . . 2 4 . 2 . . . . 2 . . . . . Scan Component 6 | . . . 1 . . . . . 1 2 . 1 . . . . 1 . . . . . Repair 6 | . . . 1 . . . . . 1 2 . 1 . . . . 1 . . . . . Recycling Unit Hacks . | . . . . . . . . . . . . . . . . . . . . . . . Scanalyzer 22 | . . . 7 . . . 7 . . 5 . 1 . . . . 2 . . . . . Insert Component 6 | . . . 2 . . . 2 . . 2 . . . . . . . . . . . . Analyze 9 | . . . 5 . . . 2 . . 2 . . . . . . . . . . . . Retrieve Study 7 | . . . . . . . 3 . . 1 . 1 . . . . 2 . . . . . Garrison Access Hacks 8 | . . . . . . . 1 . . 3 . . . . . . 4 . . . . . Unlock Access 3 | . . . . . . . 1 . . 1 . . . . . . 1 . . . . . Seal Access 5 | . . . . . . . . . . 2 . . . . . . 3 . . . . . Unauthorized Hacks 43 | . 6 . 7 . . . 9 . . 8 . . . . . . 10 . . . . 3 Terminals 42 | . 6 . 6 . . . 9 . . 8 . . . . . . 10 . . . . 3 Assimilate 6 | . . . . . . . 1 . . 1 . . . . . . 3 . . . . 1 Botnet 9 | . 2 . 1 . . . 2 . . 2 . . . . . . 2 . . . . . Operators 1 | . . . . . . . 1 . . . . . . . . . . . . . . . Skim 24 | . 4 . 5 . . . 5 . . 5 . . . . . . 5 . . . . . Sabotage 2 | . . . . . . . . . . . . . . . . . . . . . . 2 Fabricators . | . . . . . . . . . . . . . . . . . . . . . . . Repair Stations . | . . . . . . . . . . . . . . . . . . . . . . . Recycling Units 1 | . . . 1 . . . . . . . . . . . . . . . . . . . Mask 1 | . . . 1 . . . . . . . . . . . . . . . . . . . Scanalyzers . | . . . . . . . . . . . . . . . . . . . . . . . Garrison Access . | . . . . . . . . . . . . . . . . . . . . . . . Data Cores Recovered 1 | . . . . . . . 1 . . . . . . . . . . . . . . . Used . | . . . . . . . . . . . . . . . . . . . . . . . Hacking Detections 66 | . 5 . 6 1 . . 6 3 5 10 2 3 . . . . 13 2 9 . . 1 Full Trace Events 4 | . . . . 1 . . . 1 1 . . . . . . . 1 . . . . . Feedback Events 1 | . . . . . . . . 1 . . . . . . . . . . . . . . Corruption 1 | . . . . . . . . 1 . . . . . . . . . . . . . . Feedback Blocked . | . . . . . . . . . . . . . . . . . . . . . . . Robot Schematics Acquired 5 | . . . . . . . . . . . . . . . 5 . . . . . . . Robots Built . | . . . . . . . . . . . . . . . . . . . . . . . Authchips . | . . . . . . . . . . . . . . . . . . . . . . . Time . | . . . . . . . . . . . . . . . . . . . . . . . Total Robot Build Rating . | . . . . . . . . . . . . . . . . . . . . . . . Part Schematics Acquired 14 | . . . 2 . . . 2 . . 2 . . . . 8 . . . . . . . Parts Built 1 | . . . . . . . . . . . . . . . . . 1 . . . . . Authchips . | . . . . . . . . . . . . . . . . . . . . . . . Time 76 | . . . . . . . . . . . . . . . . . 76 . . . . . Total Part Build Rating 5 | . . . . . . . . . . . . . . . . . 5 . . . . . Part Studies Acquired 7 | . . . . . . . 3 . . 1 . 1 . . . . 2 . . . . . Parts Repaired 6 | . . . 1 . . . . . 1 2 . 1 . . . . 1 . . . . . Time 193 | . . . 51 . . . . . 38 63 . 19 . . . . 22 . . . . . Parts Recycled . | . . . . . . . . . . . . . . . . . . . . . . . Recycled Matter . | . . . . . . . . . . . . . . . . . . . . . . . Retrieved Matter . | . . . . . . . . . . . . . . . . . . . . . . . Retrieved Components . | . . . . . . . . . . . . . . . . . . . . . . . Parts Scanalyzed 6 | . . . 2 . . . 2 . . 2 . . . . . . . . . . . . Part Schematics Acquired 6 | . . . 2 . . . 2 . . 2 . . . . . . . . . . . . Parts Damaged . | . . . . . . . . . . . . . . . . . . . . . . . Bothacking | -11 -10 -10 -9 -9 -9 -8 -8 -8 -8 -7 -7 -7 -7 -7 -7 -6 -6 -6 -6 -6 -6 -6 ------------ Run | Yrd Mat Min Mat Min Exi Min Mat Gar Sto Fac Gar Fac Low Low Dat Pro Fac Gar Ext Cet Arc Hub Used RIF Installer . | . . . . . . . . . . . . . . . . . . . . . . . Robots Hacked . | . . . . . . . . . . . . . . . . . . . . . . . Non-combat . | . . . . . . . . . . . . . . . . . . . . . . . Combat . | . . . . . . . . . . . . . . . . . . . . . . . Robot Hacks Applied . | . . . . . . . . . . . . . . . . . . . . . . . Relay Couplers Released 63 | . . . . . . . . 25 . . 16 . . . . . . 20 . . . 2 Machine Destruction 63 | . . . . . . . . 25 . . 16 . . . . . . 20 . . . 2 Fabnet Peak Effective % . | . . . . . . . . . . . . . . . . . . . . . . . Robots Rewired 26 | . . . . . . . . 3 . . . . . . . . . 4 19 . . . Allies Hacked 1 | . . . . . . . . 1 . . . . . . . . . . . . . . Hacks Repelled . | . . . . . . . . . . . . . . . . . . . . . . . Allies | -11 -10 -10 -9 -9 -9 -8 -8 -8 -8 -7 -7 -7 -7 -7 -7 -6 -6 -6 -6 -6 -6 -6 -------- Run | Yrd Mat Min Mat Min Exi Min Mat Gar Sto Fac Gar Fac Low Low Dat Pro Fac Gar Ext Cet Arc Hub Total Allies 55 | . . 3 . 3 . . . 4 . 1 . . . . . . 2 6 30 5 . 1 Largest Group 19 | . . 3 3 3 3 3 . 3 1 1 . . . . . . 1 6 19 7 5 4 Highest-Rated Group 658 | . . 74 74 40 40 40 . 48 39 26 . . . . . . 10 290 536 658 466 307 Highest-Rated Ally 159 | . . 31 31 16 16 16 . 39 39 26 . . . . . . 10 119 159 159 159 96 Initial Warlord ECA Mod 31 | . . . . . . . . . 10 9 9 22 22 22 22 21 21 21 31 31 31 31 Total Orders 11 | . . . . . . . . . . 6 . . . . . . 5 . . . . . STAY 6 | . . . . . . . . . . 3 . . . . . . 3 . . . . . FOLLOW 5 | . . . . . . . . . . 3 . . . . . . 2 . . . . . Ally Attacks 335 | . . 3 22 17 . 2 . 16 3 . . . . . . . . 47 169 25 16 15 Total Damage 7819 | . . 20 339 199 . 14 . 220 . . . . . . . . . 1446 3453 1084 557 487 Kills 64 | . . 1 5 3 . . . 2 . . . . . . . . . 12 27 7 3 4 Allies Corrupted 3 | . . . . . . . . . . . . . . . . . . . . . . 3 Allies Melted 1 | . . . . . . . . . . . . . . . . . . . 1 . . . Intel | -11 -10 -10 -9 -9 -9 -8 -8 -8 -8 -7 -7 -7 -7 -7 -7 -6 -6 -6 -6 -6 -6 -6 ------- Run | Yrd Mat Min Mat Min Exi Min Mat Gar Sto Fac Gar Fac Low Low Dat Pro Fac Gar Ext Cet Arc Hub Active Infowar (turns) 6873 | 25 763 275 1792 325 . . . . . . 33 331 536 647 84 878 . . 2 . 1049 133 A.S.S. 33 | . . . . . . . . . . . 33 . . . . . . . . . . . IFF 2145 | . . . . . . . . . . . . . 536 647 84 878 . . . . . . Terrain 1369 | 25 162 . . . . . . . . . . . . . . . . . 2 . 1047 133 Structural 1935 | . . . 1610 325 . . . . . . . . . . . . . . . . . . Seismic 27 | . 27 . . . . . . . . . . . . . . . . . . . . . T.N.C. 2965 | . 574 275 1792 324 . . . . . . . . . . . . . . . . . . Jamming 333 | . . . . . . . . . . . . 331 . . . . . . . . 2 . Robot Analysis Total 8 | . 2 . 1 1 . . 2 . . . . . . . . . . . 2 . . . Derelict Logs Recovered 4 | . . . . 2 . . . . . . . . 1 . . 1 . . . . . . Drone Launches . | . . . . . . . . . . . . . . . . . . . . . . . Drone Recoveries . | . . . . . . . . . . . . . . . . . . . . . . . Exploration | -11 -10 -10 -9 -9 -9 -8 -8 -8 -8 -7 -7 -7 -7 -7 -7 -6 -6 -6 -6 -6 -6 -6 ------------- Run | Yrd Mat Min Mat Min Exi Min Mat Gar Sto Fac Gar Fac Low Low Dat Pro Fac Gar Ext Cet Arc Hub Turns Passed 25002 | 49 1126 275 1792 989 348 817 1056 2002 830 2100 1650 1442 537 768 84 1088 2606 1596 1757 501 1437 152 Spaces Moved 13021 | 18 640 160 808 626 233 464 547 981 417 1280 738 624 434 466 77 592 1759 649 865 191 289 163 Core 10 | . . . . . . . . . . . . . . . . . . . . . . 10 Treads 3331 | . 337 160 808 190 . . . . . . 641 538 . 117 . . 99 315 125 . 1 . Legs 343 | 18 303 . . . . . . . . . . . . 22 . . . . . . . . Wheels 7443 | . . . . 436 233 464 547 981 417 1280 97 86 434 124 . . 1424 334 586 . . . Hover 1894 | . . . . . . . . . . . . . . 203 77 592 236 . 154 191 288 153 Flight . | . . . . . . . . . . . . . . . . . . . . . . . Fastest Speed 40 | 120 120 160 160 145 145 160 145 150 120 135 135 120 120 108 108 48 105 130 103 123 40 40 Average Speed 137 | 120 141 160 160 149 146 160 156 150 139 135 155 158 120 130 108 107 114 144 133 164 98 47 Slowest Speed 400 | 120 190 160 160 160 160 160 160 150 150 135 165 165 120 400 108 108 240 160 178 178 160 221 Overloaded Moves . | . . . . . . . . . . . . . . . . . . . . . . . Propulsion Burnouts . | . . . . . . . . . . . . . . . . . . . . . . . Robots Hopped . | . . . . . . . . . . . . . . . . . . . . . . . Potential Cave-ins 5 | . . . . . . . . 5 . . . . . . . . . . . . . . Cave-ins Triggered . | . . . . . . . . . . . . . . . . . . . . . . . Exploration Rate (%) 64 | 3 95 37 69 99 60 91 43 93 71 43 82 16 81 64 68 61 49 91 86 64 90 33 Regions Visited 22 Branch Regions 13 Pre-discovered Areas 11 | . . . . 3 1 . 2 . . 2 . . 1 . 1 1 . . . . . . Known Exits Taken 8 | . . . . . . 1 1 . 1 1 . 1 1 . . . 1 . 1 . . . Unknown Exits Taken 11 | 1 1 1 1 1 1 . . . . . . . . 1 1 1 . . . 1 1 . Scrap Searched 7 | . . 1 . 1 . 1 . . . . . . 2 1 . 1 . . . . . . Spaces Dug 215 | . 10 . . . . . . 146 . 6 12 6 2 . . . 20 11 1 . . 1 Terrain Destroyed 908 | 7 30 . 25 28 . 59 69 267 . 15 152 99 2 5 . 1 35 94 13 3 2 2 Melee 58 | . . . . . . . . . . 6 12 6 2 . . . 20 11 1 . . . Projectile 33 | . . . 1 . . . . 2 . . 1 . . 5 . 1 4 . 12 3 2 2 AOE 817 | 7 30 . 24 28 . 59 69 265 . 9 139 93 . . . . 11 83 . . . . Terrain Rammed . | . . . . . . . . . . . . . . . . . . . . . . . Walls Destroyed . | . . . . . . . . . . . . . . . . . . . . . . . Machines Disabled . | . . . . . . . . . . . . . . . . . . . . . . . Actions | -11 -10 -10 -9 -9 -9 -8 -8 -8 -8 -7 -7 -7 -7 -7 -7 -6 -6 -6 -6 -6 -6 -6 --------- Run | Yrd Mat Min Mat Min Exi Min Mat Gar Sto Fac Gar Fac Low Low Dat Pro Fac Gar Ext Cet Arc Hub Total 18387 | 29 781 171 1162 656 240 509 716 1339 577 1568 1028 927 445 553 78 1019 2220 1115 1295 354 1389 216 Wait 3208 | 2 60 3 191 7 1 30 140 103 81 165 90 139 7 15 . 386 276 242 85 124 1042 19 Move 13000 | 17 639 159 807 625 232 463 546 980 416 1280 737 623 433 465 76 591 1758 648 864 190 288 163 Hop . | . . . . . . . . . . . . . . . . . . . . . . . Pick Up 154 | . 10 1 25 2 3 1 4 4 8 11 6 18 . 6 . 12 21 4 5 8 5 . Fast Attach 78 | 1 5 . 7 1 . . 3 2 4 4 5 4 . 2 . 4 10 8 9 5 4 . Attach 51 | . 2 . 2 1 . . 3 3 3 2 1 3 1 8 . 3 1 2 8 . 2 6 Detach 15 | . . . . . . . . 1 . . . . . 2 2 1 2 . 2 . 2 3 Swap 143 | . 14 . 13 3 1 . 1 8 2 11 12 13 . 9 . 1 22 13 8 6 5 1 Drop 185 | 1 7 . 30 5 3 . 3 5 4 16 14 16 1 3 . 4 26 13 8 9 13 4 Fire 1064 | 8 44 8 85 12 . 15 16 156 59 68 115 89 . 42 . 17 65 84 141 12 8 20 Melee 209 | . . . . . . . . . . 10 48 21 3 . . . 39 52 16 . 20 . Ram 1 | . . . . . . . . . . 1 . . . . . . . . . . . . Kick . | . . . . . . . . . . . . . . . . . . . . . . . Crush 2 | . . . 1 . . . . . . . . 1 . . . . . . . . . . Escape Stasis 132 | . . . . . . . . 70 . . . . . . . . . 25 37 . . . Rewire 144 | . . . . . . . . 7 . . . . . 1 . . . 24 112 . . . Trap 1 | . . . 1 . . . . . . . . . . . . . . . . . . . Miscellaneous . | . . . . . . . . . . . . . . . . . . . . . . . Route ------- -11/Scrapyard -10/Materials (discovered 5 exits: *Mat x3 / [*Min x2]) -10/Mines -9/Materials (discovered 4 exits: *Mat x3 / *Min) -9/Mines (discovered 3 exits: *Mat x2 / *Exi) -9/Exiles -8/Mines (discovered 2 exits: *Mat x2) -8/Materials (discovered 6 exits: *Fac x3 / *Sto x2 / Gar) -8/Garrison (discovered 3 exits: *Sto x3) -8/Storage (discovered 2 exits: *Fac / Rec) -7/Factory (discovered 4 exits: *Fac / Low x2 / Gar) -7/Garrison (discovered 4 exits: *Fac x4) -7/Factory -7/Lower Caves -7/Lower Caves -7/Data Miner -6/Proximity Caves -6/Factory (discovered 2 exits: *Fac / Gar) -6/Garrison (discovered 3 exits: *Ext x3) -6/Extension (discovered 2 exits: *Fac / *Cet) -6/Cetus (discovered 2 exits: *Fac / [*Arc]) -6/Archives (discovered 3 exits: *Fac / *Hub x2) -6/Hub_04(d) (discovered 1 exit: Fac) History --------- Turn | Location | Event 1 | -11/Scrapyard | Discovered new exit (range 2) 50 | -11/Scrapyard | Entered Materials 313 | -10/Materials | Build established: Mutant 343 | -10/Materials | Discovered new exit (range 15) 444 | -10/Materials | Discovered new exit (range 9) 624 | -10/Materials | Discovered new exit (range 16) 869 | -10/Materials | Discovered new exit (range 14) 1038 | -10/Materials | Discovered new exit (range 15) 1176 | -10/Materials | Entered Mines 1260 | -10/Mines | Found a hidden stash of uninstalled traps 1290 | -10/Mines | Assembled infested the area 1376 | -10/Mines | Found a Scrap Suit stashed away for nefarious purposes 1429 | -10/Mines | Discovered new exit (range 6) 1444 | -10/Mines | Met a Derelict testing a Signal Generator 1451 | -10/Mines | Entered Materials 1451 | -9/Materials | Accompanied by 3 allies 1451 | -9/Materials | Evolved 2 slots: Utility x2 1457 | -9/Materials | Led the pair of lost Derelicts to an unsafe place 1741 | -9/Materials | Discovered new exit (range 12) 2178 | -9/Materials | Discovered new exit (range 4) 2433 | -9/Materials | Build established: Scavenger-Mutant 2528 | -9/Materials | Central database locked down 2737 | -9/Materials | Build established: Mutant 2830 | -9/Materials | Discovered new exit (range 14) 2851 | -9/Materials | Learned Storage emergency access door positions 2914 | -9/Materials | Learned location of 1 exit from Storage 2965 | -9/Materials | Identified exit to Materials 3084 | -9/Materials | Repaired Imp. EM Shotgun 3243 | -9/Materials | Entered Mines 3449 | -9/Mines | Assisted by bots powering up and referring to "LRC-V3" 3493 | -9/Mines | Met a Derelict bent on vengeance 3593 | -9/Mines | Learned location of Storage (-8) 3618 | -9/Mines | Discovered exit to Materials (range 3) 3797 | -9/Mines | Discovered exit to Materials (range 9) 3894 | -9/Mines | Received a Rocket Launcher from a helpful Derelict 4223 | -9/Mines | Deemed a non-threat by the Exiles lab entrance 4224 | -9/Mines | Discovered new exit (range 5) 4232 | -9/Mines | Entered Exiles 4232 | -9/Exiles | Accompanied by 3 allies 4277 | -9/Exiles | Met 8R-AWN 4300 | -9/Exiles | Met EX-HEX 4344 | -9/Exiles | Met EX-BIN 4361 | -9/Exiles | Aligned with FarCom system 4363 | -9/Exiles | Given EX-Vault access code 4399 | -9/Exiles | Opened EX-Vault 4411 | -9/Exiles | Found Gui. Plasma Cannon 4441 | -9/Exiles | Warned to stay clear of 0b10 Research branches 4459 | -9/Exiles | Exiles lab attacked by MAIN.C 4490 | -9/Exiles | Learned location of Zion (-6) 4564 | -9/Exiles | Discovered new exit (range 10) 4580 | -9/Exiles | Left Exiles lab with Gui. Plasma Cannon 4580 | -9/Exiles | Entered Mines 4580 | -8/Mines | Accompanied by 3 allies 4729 | -8/Mines | Discovered exit to Materials (range 8) 4739 | -8/Mines | Lost 3 allies 5052 | -8/Mines | Discovered exit to Materials (range 7) 5397 | -8/Mines | Entered Materials 5397 | -8/Materials | Evolved 2 slots: Propulsion x1, Utility x1 5530 | -8/Materials | Discovered new exit (range 4) 5600 | -8/Materials | Discovered new exit (range 15) 6118 | -8/Materials | Central database locked down 6181 | -8/Materials | Identified exit to Garrison 6275 | -8/Materials | Discovered new exit (range 15) 6336 | -8/Materials | Learned Factory trap positions 6368 | -8/Materials | Identified exit to Factory 6402 | -8/Materials | Learned location of 1 exit from Lower Caves 6405 | -8/Materials | Learned 2 Lower Caves zone layouts 6406 | -8/Materials | Learned Factory trap positions 6426 | -8/Materials | Learned Storage garrison access intel 6451 | -8/Materials | Learned Storage garrison access intel 6453 | -8/Materials | Entered Garrison 6561 | -8/Garrison | Triggered checkpoint 6685 | -8/Garrison | Garrison Relay disabled 6744 | -8/Garrison | Triggered checkpoint 6789 | -8/Garrison | Triggered checkpoint 6860 | -8/Garrison | Triggered checkpoint 6903 | -8/Garrison | Destroyed 7 combat bots 6910 | -8/Garrison | Triggered checkpoint 7008 | -8/Garrison | Discovered new exit (range 8) 7037 | -8/Garrison | Triggered checkpoint 7102 | -8/Garrison | Garrison Relay disabled 7371 | -8/Garrison | Garrison Relay disabled 7499 | -8/Garrison | Discovered new exit (range 12) 7537 | -8/Garrison | Garrison Relay disabled 7539 | -8/Garrison | Triggered checkpoint 7687 | -8/Garrison | Lost 3 allies 7893 | -8/Garrison | Discovered new exit (range 16) 7941 | -8/Garrison | Rescued a captive Derelict 7977 | -8/Garrison | Triggered checkpoint 7988 | -8/Garrison | Triggered checkpoint 8041 | -8/Garrison | Destroyed 8 combat bots 8068 | -8/Garrison | Garrison Relay disabled 8278 | -8/Garrison | Discovered new exit (range 72) 8278 | -8/Garrison | Discovered new exit (range 25) 8278 | -8/Garrison | Discovered new exit (range 71) 8284 | -8/Garrison | Garrison Relay disabled 8455 | -8/Garrison | Entered Storage 8455 | -8/Storage | Accompanied by 1 ally 8456 | -8/Storage | Identified exit to Recycling 8458 | -8/Storage | Loaded intel: 1 garrison access location 8765 | -8/Storage | Repaired Hvy. Armor Plating? 9240 | -8/Storage | Discovered exit to Factory (range 16) 9255 | -8/Storage | First assault squad dispatched 9285 | -8/Storage | Entered Factory 9285 | -7/Factory | Evolved 2 slots: Propulsion x1, Utility x1 9286 | -7/Factory | Loaded intel: 101 trap records 9352 | -7/Factory | Central database locked down 9666 | -7/Factory | Build established: Hacker-Mutant 10360 | -7/Factory | Repaired Hvy. Armor Plating 10479 | -7/Factory | Repaired Powered Hammer 10554 | -7/Factory | Identified exit to Lower Caves 10993 | -7/Factory | Watched by a mysterious "MATRIX" hacker. 11031 | -7/Factory | Discovered new exit (range 16) 11064 | -7/Factory | Learned Factory trap positions 11125 | -7/Factory | Learned Extension emergency access door positions 11215 | -7/Factory | Learned location of 1 exit from Extension 11244 | -7/Factory | Learned 4 Lower Caves zone layouts 11272 | -7/Factory | Learned location of 1 exit from Extension 11292 | -7/Factory | Learned location of Lower Caves (-7) 11385 | -7/Factory | Identified exit to Garrison 11385 | -7/Factory | Entered Garrison 11393 | -7/Garrison | Triggered checkpoint 11492 | -7/Garrison | Destroyed 8 combat bots 11499 | -7/Garrison | Discovered new exit (range 6) 11622 | -7/Garrison | H-XX Assembler disabled 11663 | -7/Garrison | Found Prototype Device 11663 | -7/Garrison | Identified Active Sensor Suite 11726 | -7/Garrison | Triggered checkpoint 11745 | -7/Garrison | Gui. Plasma Cannon suddenly broke down 11791 | -7/Garrison | Garrison Relay disabled 11919 | -7/Garrison | Triggered checkpoint 11943 | -7/Garrison | Triggered checkpoint 11966 | -7/Garrison | Triggered checkpoint 12075 | -7/Garrison | Triggered checkpoint 12143 | -7/Garrison | Discovered new exit (range 26) 12143 | -7/Garrison | Discovered new exit (range 47) 12143 | -7/Garrison | Discovered new exit (range 71) 12143 | -7/Garrison | Discovered new exit (range 59) 12258 | -7/Garrison | Phase Generator disabled 12270 | -7/Garrison | Garrison Relay disabled 12543 | -7/Garrison | Garrison Relay disabled 12543 | -7/Garrison | Triggered checkpoint 12617 | -7/Garrison | Triggered checkpoint 13035 | -7/Garrison | Entered Factory 13036 | -7/Factory | Loaded intel: 83 trap records 13435 | -7/Factory | First assault squad dispatched 14207 | -7/Factory | Repaired Hvy. Armor Plating 14410 | -7/Factory | Discovered exit to Lower Caves (range 14) 14477 | -7/Factory | Entered Lower Caves 14478 | -7/Lower Caves | Identified exit to Lower Caves 14500 | -7/Lower Caves | Met a Warlord Commander 14501 | -7/Lower Caves | Learned location of Warlord (-4) 14502 | -7/Lower Caves | Warlord Commander delivered Encrypted Comm Array 14981 | -7/Lower Caves | Learned Factory emergency access door positions 15014 | -7/Lower Caves | Entered another Lower Caves area 15052 | -7/Lower Caves | Entered a destroyed Warlord outpost 15165 | -7/Lower Caves | Attracted the attention of an 0b10 checkpoint 15457 | -7/Lower Caves | Ambushed by wild Derelicts 15487 | -7/Lower Caves | Core integrity fell below 50% 15671 | -7/Lower Caves | Encountered a Warlord checkpoint 15770 | -7/Lower Caves | Discovered new exit (range 12) 15782 | -7/Lower Caves | Entered Data Miner 15784 | -7/Data Miner | Discovered new exit (range 6) 15804 | -7/Data Miner | Build established: Scavenger-Mutant 15804 | -7/Data Miner | Met Data Miner 15823 | -7/Data Miner | Learned location of Section 7 (-2) 15823 | -7/Data Miner | Acquired the access code to Warlord's prototype stash 15842 | -7/Data Miner | Received God Mode back door access code from Data Miner 15866 | -7/Data Miner | Entered Proximity Caves 15875 | -6/Proximity Caves | Learned location of Extension (-6) 16024 | -6/Proximity Caves | Received a Behemoth hack from an annoying Tinkerer 16940 | -6/Proximity Caves | Discovered new exit (range 13) 16954 | -6/Proximity Caves | Entered Factory 16954 | -6/Factory | Evolved 2 slots: Propulsion x2 16955 | -6/Factory | Loaded intel: 110 trap records 17742 | -6/Factory | Fabricated Cld. Plasma Cannon? 17919 | -6/Factory | Repaired Proton Missile Launcher 18251 | -6/Factory | Build established: Hacker-Mutant 18753 | -6/Factory | Discovered new exit (range 8) 18905 | -6/Factory | Identified exit to Garrison 19116 | -6/Factory | Build established: Scavenger-Mutant 19229 | -6/Factory | Learned 4 Hub_04(d) zone layouts 19560 | -6/Factory | Entered Garrison 19605 | -6/Garrison | Build established: Hacker-Mutant 19712 | -6/Garrison | Rescued a captive Derelict 19713 | -6/Garrison | Rescued a captive Derelict 19815 | -6/Garrison | Garrison Relay disabled 19932 | -6/Garrison | Triggered checkpoint 19932 | -6/Garrison | Triggered checkpoint 19958 | -6/Garrison | Triggered checkpoint 20002 | -6/Garrison | Triggered checkpoint 20117 | -6/Garrison | Phase Generator disabled 20136 | -6/Garrison | Learned Extension security intel 20136 | -6/Garrison | Discovered new exit (range 66) 20136 | -6/Garrison | Discovered new exit (range 62) 20136 | -6/Garrison | Discovered new exit (range 16) 20209 | -6/Garrison | Rewired Executioner 20247 | -6/Garrison | Triggered checkpoint 20425 | -6/Garrison | Triggered checkpoint 20490 | -6/Garrison | Triggered checkpoint 20502 | -6/Garrison | Garrison Relay disabled 20816 | -6/Garrison | Spotted B-75 Beast 20827 | -6/Garrison | Triggered checkpoint 20895 | -6/Garrison | Triggered checkpoint 20960 | -6/Garrison | Garrison Relay disabled 21140 | -6/Garrison | Build established: Mutant 21156 | -6/Garrison | Entered Extension 21156 | -6/Extension | Accompanied by 4 allies 21157 | -6/Extension | Identified exit to Cetus 21157 | -6/Extension | Identified exit to Factory 21313 | -6/Extension | Spotted B-75 Beast 21316 | -6/Extension | Destroyed B-75 Beast 21332 | -6/Extension | Lost 3 allies 21332 | -6/Extension | Spotted B-75 Beast 21348 | -6/Extension | Destroyed B-75 Beast 21456 | -6/Extension | Disrupted transfer network 21465 | -6/Extension | Destroyed 10 combat bots 21506 | -6/Extension | First assault squad dispatched 21538 | -6/Extension | Rescued a captive Derelict 21539 | -6/Extension | Rescued a captive Derelict 21548 | -6/Extension | Rescued a captive Derelict 21596 | -6/Extension | Build established: Scavenger-Mutant 21615 | -6/Extension | Lost 3 allies 21743 | -6/Extension | Lost 3 allies 22312 | -6/Extension | Build established: Commander-Mutant 22355 | -6/Extension | Rescued a captive Derelict 22356 | -6/Extension | Rescued a captive Derelict 22520 | -6/Extension | Rescued a captive Derelict 22521 | -6/Extension | Rescued a captive Derelict 22566 | -6/Extension | Rescued a captive Derelict 22677 | -6/Extension | Lost 17 allies 22680 | -6/Extension | Lost 3 parts (1n1u1w) 22681 | -6/Extension | Rescued a captive Derelict 22682 | -6/Extension | Rescued a captive Derelict 22774 | -6/Extension | Rescued A7 22842 | -6/Extension | Found Hvy. Reactive Plating 22913 | -6/Extension | Entered Cetus 22913 | -6/Cetus | Accompanied by 2 allies (A7) 22918 | -6/Cetus | Acquired a Cetus Manufacturing Module code from A7 22941 | -6/Cetus | Spotted Cetus Guard 22941 | -6/Cetus | Spotted Cetus Guard 22944 | -6/Cetus | Allies destroyed Cetus Guard 22946 | -6/Cetus | Spotted Cetus Guard 22947 | -6/Cetus | Destroyed Cetus Guard 22959 | -6/Cetus | Build established: Scavenger-Mutant 22959 | -6/Cetus | Destroyed Cetus Guard 23082 | -6/Cetus | Started Cetus Manufacturing Module 23107 | -6/Cetus | Manufactured an Enhanced Grunt 23132 | -6/Cetus | Manufactured an Enhanced Grunt 23157 | -6/Cetus | Manufactured an Enhanced Grunt 23182 | -6/Cetus | Manufactured an Enhanced Grunt 23207 | -6/Cetus | Manufactured an Enhanced Grunt 23253 | -6/Cetus | Discovered new exit (range 15) 23286 | -6/Cetus | Spotted Cetus Guard 23286 | -6/Cetus | Spotted Cetus Guard 23290 | -6/Cetus | Spotted Cetus Guard 23291 | -6/Cetus | Allies destroyed Cetus Guard 23293 | -6/Cetus | Spotted Cetus Guard 23299 | -6/Cetus | Allies destroyed Cetus Guard 23300 | -6/Cetus | Allies destroyed Cetus Guard 23305 | -6/Cetus | Destroyed Cetus Guard 23321 | -6/Cetus | Found Prototype Device 23321 | -6/Cetus | Identified Exp. Thermal Shield 23339 | -6/Cetus | Discovered exit to Factory (range 15) 23346 | -6/Cetus | Met Revision 17 23414 | -6/Cetus | Entered Archives 23414 | -6/Archives | Accompanied by 5 allies (A7) 23497 | -6/Archives | Discovered new exit (range 15) 23581 | -6/Archives | Discovered new exit (range 13) 23615 | -6/Archives | Discovered exit to Factory (range 16) 24111 | -6/Archives | Build established: Scavenger-Scout 24851 | -6/Archives | Entered Hub_04(d) 24851 | -6/Hub_04(d) | Accompanied by 3 allies 24907 | -6/Hub_04(d) | Network Hub disabled 24908 | -6/Hub_04(d) | Spotted Lightning 24908 | -6/Hub_04(d) | Spotted Lightning 24908 | -6/Hub_04(d) | Spotted Lightning 24910 | -6/Hub_04(d) | Network Hub disabled 24935 | -6/Hub_04(d) | Core integrity fell below 50% 24954 | -6/Hub_04(d) | Spotted Lightning 24955 | -6/Hub_04(d) | Spotted Lightning 24955 | -6/Hub_04(d) | Spotted Lightning 24978 | -6/Hub_04(d) | System corruption reached 10% 24996 | -6/Hub_04(d) | Core integrity fell below 20% 25003 | -6/Hub_04(d) | Destroyed by Lightning with EMDS Last Messages --------------- 24993_ System corrupted: Cold Fusion Reactor fused. 24993_ EMDS Slug penetrates Wall. 24993_ Penetrated by EMDS Slug. 24995_ EMDS Slug penetrates Wall. 24996_ Ended siege mode. 24996_ Dropped Centrium Heavy Treads. 24996_ Cold Fusion Reactor destroyed. 24997_ Dropped Centrium Heavy Treads. 24997_ Penetrated by EMDS Slug. 24997_ Adv. KE Penetrator destroyed. 24997_ Dropped Hcp. Storage Unit. 24998_ C-45 Heavy ARC bursts open, deploying its payload. 24998_ G-67 Veteran unfolds itself. 24998_ L-41 Fighter unfolds itself. 24998_ G-50 Soldier unfolds itself. 24998_ E-15 Imp unfolds itself. 24998_ Penetrated by EMDS Slug. 25001_ EMDS Slug penetrates Wall. Map ----- +----------------------------------------------------+ | ?????????????????????????????#?# =# | | ?????????????????????????#?????#/ # | | ???????????????????????????????# # | | ???????????????????????????????#! # | | ??????????????????????????########"""""""" | | ????????????? ???????????## " | | ?????????????????#########""""""""" | | ???????????????? | | ???????????????????######""""""""" """"" | | ???????####????????#??# " " | | ????#### ############# " | | ???? # [ # | | ???? ; # " | | ???""""";;;;;;;; "## [h " | | ???" ;; ]!h ; " | | ?? " ;; ]!== ##;; " | | ?? " ;; ==! ## | | ?? " ;;;;;"h"i;; | | ?? " ; hg | | ?? " l """"""""" | | ?? " ;;; ###;" g" " " " " | | ?? ; ;; ;# g i" # " " " | | ?? ; ;; ;##"g"#%###### " "## | | ?? ; ;; g%lg"# " #?#" "?# | | ?? ; ;; e ###Y #[ #?## "## | | ??;;;;;;;;;;;;;; @ #?# # !! ### ##+ | | ?? ;; ; #?# # !! + | | ?? #; ; #?# + ! ### | | ??????#; ; #?? # #?# ### | | ??????#; *$%;*% #?? ###########+##### | | ??????#;;;;;;;;;##;##???? #?# ## ## | | ????? / ?? =? ??? #?# ## ## | | ???? # ?? ????? #?# # ## | | ??????###;;;###;??##????? #?#### ## | | ???????? ?? #????????? #???## ## | | ???????% ???"?????????? #???# " " " ## | | ??????# ???"?????????? #???## "G" " + | | ???????? ??????????????? #????# " " ## | | ?????????????????????????????????????????? | | ?????????????????????????????????????????? | | ?????????????????????????????????????????? | | ?????????????????????????????????????????? | | ?????????????????????????????????????????? | | ?????????????????????????????????????????? | | ?????????????????????????????????????????? | | ?????????????????????????????????????????? | | ?????????????????????????????????????????? | | ?????????????????????????????????????????? | | ?????????????????????????????????????????? | | ?????????????????????????????????????????? | +----------------------------------------------------+ Best States ------------- Heat Dissipation 64 Energy Generation 25 Energy Capacity 440 Matter Stores 300 Matter Capacity 300 Sight Range 16 Robot Scan Range 20 Terrain Scan Range 16 Terrain Scan Density 10 Jamming Range 12 Armor Coverage 1200 Resistance: KI 40 Evasion (%) 57 Targeting Accuracy 16 Core Analysis 6 Armor Integrity Analysis 40 Recoil Reduction 6 Offensive Hacking 24 Defensive Hacking 24 Item Schematics ----------------- Plasma Cutter | -9/Materials | Scanalyzed Com. Wheel | -9/Materials | Scanalyzed Hvy. Armor Plating | -8/Materials | Scanalyzed Fission Core | -8/Materials | Scanalyzed IFF Parser | -7/Factory | Scanalyzed Hacking Suite | -7/Factory | Scanalyzed Combat Drone Bay | -7/Data Miner | Free Lgt. Regenerative Plating | -7/Data Miner | Free Cld. Aerolev Unit | -7/Data Miner | Free Exp. Targeting Computer | -7/Data Miner | Free Cld. Plasma Cannon | -7/Data Miner | Free Gyrokinetic Inverter | -7/Data Miner | Free Imp. Recalibrator | -7/Data Miner | Free Disruptor Cannon | -7/Data Miner | Free Robot Schematics ------------------ A-15 Conveyor | -7/Data Miner | Free S-27 Virus | -7/Data Miner | Free W-25 Informer | -7/Data Miner | Free O-24 Administrator | -7/Data Miner | Free G-50 Soldier | -7/Data Miner | Free Fabricated ------------ Cld. Plasma Cannon | x1 | -6/Factory Repaired ---------- Imp. EM Shotgun | 1% | -9/Materials Hvy. Armor Plating | 19% | -8/Storage Hvy. Armor Plating | 14% | -7/Factory Powered Hammer | 25% | -7/Factory Hvy. Armor Plating | 6% | -7/Factory Proton Missile Launcher | 4% | -6/Factory Studied --------- Com. Wheel | -8/Materials | Hacked EM Pulse Cannon | -8/Materials | Hacked Adv. Treads | -8/Materials | Hacked EMP Blaster | -7/Factory | Hacked Powered Hammer | -7/Factory | Hacked Gravmag System | -6/Factory | Hacked Imp. Gravmag System | -6/Factory | Hacked Alien Tech Used ----------------- None Achievements -------------- Hammer Time Resistances Are Futile Some Acronyms Are Better Than Others Challenges ------------ None Game ------ Seed TitaniumIntegratedFilter Manual? 0 Play Time 03:31:51 Cumulative 326.7 hours Start 2026.03.09 @ 18:46:45 End 2026.03.10 @ 18:41:33 Sessions 7 Manual Loads 0 Difficulty Rogue Special Mode None Game No. 268 Rogue 232 Adventurer 36 Explorer 0 Win Type - Total 4 Types 2/0/0/1/0/0/0/1/0/0 Lore% 59 Gallery% 62 Achievement% 43 Wizard Run 0 Options --------- Layout 1 ASCII 0 Keyboard 0 Movement Numpad Keybinds 0 Fullscreen 1 Font 48/Smallcaps Map View 50x35 Zoom Use 0% Tactical HUD 1 Map Filters NONE Filters NONE Steam 1 RUN: 8dab0994-be0e-43fd-863a-b647d46244e3